bitfinex/quotes_ETHUSD_20220305
["timestamp","ask_amount","ask_price","bid_price","bid_amount"]
[1646486465474,0.68499404,2649.8,2649.5,0.00116705]
[1646486465673,0.376,2649.9,2649.5,0.00116705]
[1646486465674,0.68499404,2649.7,2649.5,0.00116705]
[1646486466476,0.68499404,2649.7,2649.1,24.22704531]
[1646486466676,0.68499404,2649.7,2649.5,0.00285251]
[1646486467732,0.68499404,2649.7,2649.1,23.23318623]
[1646486467931,0.68499404,2649.7,2649.5,0.00286195]
[1646486468830,0.68499404,2649.6,2649.1,23.23318623]
[1646486469230,1.0,2649.7,2649.5,0.00286195]
[1646486470029,1.9128475,2649.7,2649.1,23.23318623]
[1646486470232,0.68737196,2649.5,2649.1,23.23318623]
[1646486471672,0.68737196,2649.5,2649.2,0.00271999]
[1646486472479,0.68737196,2649.5,2649.1,23.23318623]
[1646486472880,0.68737196,2649.5,2649.2,0.00271997]
[1646486473077,0.68737196,2649.6,2649.2,0.00271997]
[1646486473678,0.68737196,2649.7,2649.1,23.23318623]
[1646486474078,0.9128475,2649.9,2649.6,1.04507491]
[1646486474079,0.68737196,2649.9,2649.6,1.04507491]
[1646486474278,1.82277196,2650.0,2649.3,0.00271995]
[1646486474927,1.82277196,2650.0,2649.2,0.78071575]
[1646486475424,1.82277196,2650.0,2649.5,1.02522847]
[1646486475624,0.68737196,2650.1,2649.5,1.02522847]
[1646486476224,0.68737196,2650.1,2649.5,1.02249003]
[1646486476432,0.62567744,2649.4,2649.2,1.15671575]
[1646486476629,0.62567744,2649.4,2649.3,0.99457098]
[1646486477228,0.62567744,2649.4,2649.2,0.78071575]
[1646486477433,0.62567744,2649.4,2649.2,0.78055938]
[1646486477833,0.62567744,2649.4,2649.2,0.78049026]
[1646486478774,0.62567744,2649.4,2649.2,0.00273855]
[1646486479374,1.26036281,2649.3,2649.2,0.27180291]
[1646486479773,1.26036281,2649.3,2649.2,0.26906436]
[1646486479981,2.57341221,2649.4,2649.1,23.23318623]
[1646486480177,2.29285897,2649.3,2649.2,0.00273855]
[1646486480775,1.26036281,2649.3,2649.2,0.00273855]
[1646486480982,1.26036281,2649.3,2649.1,23.23318623]
[1646486482430,1.26036281,2649.3,2649.1,23.23611702]
[1646486483232,1.26036281,2649.3,2649.1,23.23318623]
[1646486483630,1.26036281,2649.3,2649.1,23.23611702]
[1646486484631,1.26036281,2649.3,2649.1,23.23318623]
[1646486484832,1.26036281,2649.3,2649.1,23.23611702]
[1646486485534,1.26036281,2649.3,2649.1,22.68611702]
[1646486485733,1.26036281,2649.3,2649.1,22.68318623]
[1646486486171,1.26036281,2649.3,2649.1,22.68611702]
[1646486486972,1.26036281,2649.3,2649.1,22.68318623]
[1646486487378,3.57341221,2649.4,2649.1,22.6860203]
[1646486487582,1.26036281,2649.3,2649.1,22.6860203]
[1646486487779,1.26036281,2649.2,2649.1,22.6860203]
[1646486488179,1.26036281,2649.2,2649.1,22.68318623]
[1646486488378,1.26036281,2649.2,2649.1,22.6860203]
[1646486489278,1.26036281,2649.2,2649.1,22.68318623]
[1646486489940,1.26036281,2649.2,2649.1,22.97127172]
[1646486493049,1.26036281,2649.2,2649.1,22.68318623]
[1646486493677,1.26036281,2649.2,2649.1,22.97131415]
[1646486494078,1.26036281,2649.2,2649.1,22.68318623]
[1646486494277,1.26036281,2649.2,2649.1,22.97128194]
[1646486494477,1.26036281,2649.2,2649.1,22.68318623]
[1646486494977,1.21036281,2649.2,2649.1,22.68318623]
[1646486495177,2.3130494,2649.4,2649.1,22.68318623]
[1646486495178,1.62567744,2649.4,2649.1,22.68318623]
[1646486495580,0.62567744,2649.4,2649.1,22.68318623]
[1646486496379,1.3130494,2649.4,2649.1,22.68318623]
[1646486496580,0.62567744,2649.4,2649.1,21.03195211]
[1646486496778,0.62567744,2649.4,2649.1,21.03467953]
[1646486496979,1.3130494,2649.4,2649.1,21.03467953]
[1646486497834,1.3130494,2649.4,2649.1,21.03195211]
[1646486498034,1.3130494,2649.4,2649.1,21.03467898]
[1646486498934,1.3130494,2649.4,2649.1,21.03195211]
[1646486498935,0.68737196,2649.3,2649.1,21.03195211]
[1646486499335,0.68737196,2649.3,2649.1,21.03467898]
[1646486500234,0.68737196,2649.3,2649.1,21.03195211]
[1646486500435,0.68737196,2649.3,2649.1,21.034679]
[1646486501578,0.68737196,2649.3,2649.1,21.03195211]
[1646486501777,0.68737196,2649.3,2649.1,21.03467905]
[1646486501978,1.8394711,2649.3,2649.1,21.03467905]
[1646486502581,1.8394711,2649.3,2649.1,21.03195211]
[1646486502781,1.8394711,2649.3,2649.1,21.03467905]
[1646486502981,0.68737196,2649.3,2649.1,21.03467905]
[1646486503582,1.3130494,2649.4,2649.1,21.03467905]
[1646486503781,1.3130494,2649.4,2649.1,21.03195211]
[1646486504182,0.62567744,2649.4,2649.1,21.03467905]
[1646486504832,1.3130494,2649.4,2649.1,21.03467905]
[1646486505026,1.3130494,2649.4,2649.1,21.03195211]
[1646486505226,0.62567744,2649.4,2649.1,21.03467902]
[1646486505428,1.3130494,2649.4,2649.1,21.03467902]
[1646486506226,0.62567744,2649.4,2649.1,21.03195211]
[1646486506426,1.3130494,2649.4,2649.1,21.03467902]
[1646486507432,1.3130494,2649.4,2649.1,21.03195211]
[1646486507631,1.3130494,2649.4,2649.1,21.03467902]
[1646486508679,1.3130494,2649.4,2649.1,21.03195211]
[1646486508876,1.3130494,2649.4,2649.1,21.0346198]
[1646486509078,0.68737196,2649.2,2649.1,21.0346198]
[1646486509878,0.68737196,2649.2,2649.1,21.03195211]
[1646486511086,4.18737196,2649.2,2649.1,21.03195211]
[1646486511294,4.5,2649.2,2649.1,21.03195211]
[1646486511482,7.82838698,2649.2,2649.1,21.03195211]
[1646486511885,8.82838698,2649.2,2649.1,21.03195211]
[1646486512084,10.39677136,2649.2,2649.1,21.03195211]
[1646486512339,21.85677136,2649.2,2649.1,21.03195211]
[1646486512534,18.46576926,2649.2,2649.1,21.03195211]
[1646486512735,16.78838698,2649.2,2649.1,21.03195211]
[1646486513135,5.32838698,2649.2,2649.1,21.03195211]
[1646486513336,5.876,2649.2,2649.1,21.03195211]
[1646486513941,10.37515841,2649.2,2649.1,18.55434808]
[1646486514137,21.99479848,2649.2,2649.1,18.55434808]
[1646486514340,22.99479848,2649.2,2649.1,18.55434808]
[1646486514538,22.99479848,2649.2,2649.1,16.32535571]
[1646486514539,30.70513042,2649.2,2649.1,16.32535571]
[1646486514738,29.14212892,2649.2,2649.1,16.32535571]
[1646486515138,29.30289061,2649.2,2649.1,16.32535571]
[1646486515840,27.47489001,2649.2,2649.1,16.32535571]
[1646486516075,30.86589211,2649.2,2649.1,15.51883711]
[1646486516275,30.86589211,2649.2,2649.1,14.59725898]
[1646486516276,31.31789211,2649.2,2649.1,14.59725898]
[1646486516481,27.92689001,2649.2,2649.1,5.99109914]
[1646486516877,32.31789211,2649.2,2649.1,0.32067914]
[1646486517278,28.92689001,2649.2,2649.1,0.32067914]
[1646486517484,16.836,2649.1,2649.0,0.00292754]
[1646486517683,11.836,2648.9,2648.3,0.00176328]
[1646486517884,0.91280317,2648.5,2648.3,0.00176328]
[1646486518183,16.49676169,2648.4,2648.1,0.82232028]
[1646486518382,1.0,2648.2,2648.1,0.820557]
[1646486518583,2.16076169,2648.2,2648.1,0.820557]
[1646486518987,2.57925754,2648.2,2648.1,0.820557]
[1646486519386,3.57925754,2648.2,2648.1,0.820557]
[1646486519585,2.57925754,2648.2,2648.1,0.820557]
[1646486519835,3.20325754,2648.2,2648.1,0.820557]
[1646486520026,2.20325754,2648.2,2648.1,0.820557]
[1646486520227,2.16076169,2648.2,2648.1,0.820557]
[1646486520428,1.16076169,2648.2,2648.1,0.820557]
[1646486521028,1.71937808,2648.2,2648.1,0.820557]
[1646486521533,1.16076169,2648.2,2648.1,0.820557]
[1646486522534,1.16076169,2648.2,2648.1,2.17502117]
[1646486523983,1.16076169,2648.2,2648.1,1.79902117]
[1646486524983,1.2151,2648.8,2648.1,1.79902117]
[1646486525184,1.12619017,2648.7,2648.1,1.79902117]
[1646486525383,1.12619017,2648.6,2648.1,1.80078445]
[1646486525585,1.12619017,2648.5,2648.1,1.79902117]
[1646486525784,1.12619017,2648.4,2648.1,1.80078445]
[1646486525986,1.31489017,2648.8,2648.1,1.79902117]
[1646486526185,1.12619017,2648.7,2648.1,1.80078445]
[1646486526386,1.12619017,2648.7,2648.1,1.79902117]
[1646486526586,1.12619017,2648.7,2648.1,0.820557]
[1646486526789,1.12619017,2648.7,2648.3,0.00283126]
[1646486527835,1.12619017,2648.7,2648.1,0.82232028]
[1646486528036,1.12619017,2648.7,2648.4,0.00283124]
[1646486528839,1.12619017,2648.6,2648.4,0.00283124]
[1646486529039,4.62619017,2648.5,2648.2,0.00176328]
[1646486529240,4.62619017,2648.5,2648.1,0.820557]
[1646486529241,4.62619017,2648.4,2648.1,0.820557]
[1646486529542,1.12619017,2648.3,2648.1,0.820557]
[1646486530440,1.12619017,2648.3,2648.1,0.82326577]
[1646486530641,1.12619017,2648.2,2648.1,0.82326577]
[1646486531281,1.347,2648.8,2648.1,0.82326577]
[1646486531282,0.376,2648.5,2648.1,0.82326577]
[1646486531480,3.68362617,2648.4,2648.1,0.820557]
[1646486531677,0.68362617,2648.2,2648.1,0.820557]
[1646486531877,1.12762374,2648.2,2648.1,0.820557]
[1646486533481,1.80890821,2648.2,2648.1,0.820557]
[1646486534686,1.12762374,2648.2,2648.1,0.820557]
[1646486535130,1.12762374,2648.5,2648.1,0.820557]
[1646486535332,1.68128447,2648.7,2648.1,0.820557]
[1646486535333,1.12762374,2648.4,2648.1,0.820557]
[1646486535529,1.12762374,2648.3,2648.1,0.820557]
[1646486535730,1.12762374,2648.2,2648.1,0.820557]
[1646486535931,1.12762374,2648.5,2648.1,0.820557]
[1646486536531,1.12762374,2648.5,2648.1,1.196557]
[1646486536729,1.12762374,2648.5,2648.1,0.376]
[1646486537335,1.12762374,2648.5,2648.1,0.346]
[1646486537631,1.12762374,2648.5,2648.2,0.00263789]
[1646486538682,1.12762374,2648.5,2648.1,0.346]
[1646486538886,0.1887,2648.7,2648.2,0.00258927]
[1646486538887,1.12762374,2648.4,2648.2,0.00258927]
[1646486539091,1.12762374,2648.6,2648.2,0.00258927]
[1646486539287,1.31632374,2648.5,2648.2,0.00258927]
[1646486539486,1.12762374,2648.4,2648.2,0.00258927]
[1646486539686,1.12762374,2648.3,2648.2,0.00258927]
[1646486539892,1.12762374,2648.6,2648.1,0.346]
[1646486540088,1.12762374,2648.6,2648.2,0.00258927]
[1646486541186,1.12762374,2648.6,2648.3,0.00259498]
[1646486541888,1.80890821,2648.7,2648.3,0.00259498]
[1646486542086,1.12762374,2648.6,2648.3,0.00259498]
[1646486542338,1.12762374,2648.5,2648.1,0.00176328]
[1646486542533,1.12762374,2648.4,2648.3,0.0027289]
[1646486542731,2.16196737,2648.4,2648.3,0.0027289]
[1646486543333,2.16196737,2648.4,2647.7,0.00176328]
[1646486543334,6.28990781,2648.4,2647.7,0.00176328]
[1646486543531,4.62762374,2648.3,2647.5,1.38826328]
[1646486543731,1.12762374,2648.2,2647.5,1.38826328]
[1646486543932,1.12762374,2648.1,2647.5,1.13826328]
[1646486544132,1.12762374,2648.0,2647.5,0.00176328]
[1646486544331,1.12762374,2647.9,2647.4,0.376]
[1646486544533,1.12762374,2647.8,2647.4,0.376]
[1646486544732,1.12762374,2647.7,2647.3,0.37770303]
[1646486544932,1.08134314,2648.0,2647.3,0.37770303]
[1646486544933,1.12762374,2647.6,2647.3,0.376]
[1646486545135,1.08134314,2648.0,2647.3,0.37770303]
[1646486545332,1.10440513,2647.9,2647.3,0.376]
[1646486545633,1.10440513,2647.9,2647.3,0.37770303]
[1646486545832,3.5,2647.8,2647.3,0.00170303]
[1646486546080,1.10440513,2647.7,2647.1,1.67570303]
[1646486546478,4.5510611,2647.7,2647.1,1.67570303]
[1646486546680,4.5510611,2647.6,2647.1,1.67570303]
[1646486546883,1.17450138,2647.3,2647.1,1.674]
[1646486547084,1.10440513,2647.5,2646.9,0.00170303]
[1646486547085,1.10440513,2647.2,2646.9,0.00170303]
[1646486547284,1.10440513,2647.1,2646.7,0.00170303]
[1646486547485,3.44665597,2647.5,2646.5,3.61401777]
[1646486547486,3.44665597,2647.3,2646.5,1.2206208]
[1646486547688,3.44665597,2647.3,2646.5,1.21891777]
[1646486547689,1.10440513,2647.2,2646.5,1.21891777]
[1646486547886,1.10440513,2647.2,2646.5,1.2206208]
[1646486548088,2.07262807,2647.2,2646.5,1.21891777]
[1646486548287,1.10440513,2647.1,2646.4,0.00170303]
[1646486548486,1.10440513,2647.1,2646.7,0.00292613]
[1646486549486,1.10440513,2647.1,2646.3,0.00170303]
[1646486549687,1.10440513,2647.1,2646.8,0.0029261]
[1646486549931,9.0510611,2647.1,2646.8,0.0029261]
[1646486550131,1.10440513,2647.0,2646.8,0.0029261]
[1646486550532,1.48040513,2647.0,2646.3,0.00170303]
[1646486550733,1.10440513,2646.9,2646.3,0.00170303]
[1646486550934,1.10440513,2646.9,2646.8,0.0029261]
[1646486551338,16.90665597,2647.1,2646.8,0.0029261]
[1646486551339,5.44665597,2647.1,2646.8,0.0029261]
[1646486551536,1.10211712,2647.0,2646.8,0.0029261]
[1646486551737,0.1887,2647.4,2646.5,1.13972158]
[1646486551936,1.10299429,2647.3,2646.5,1.13801855]
[1646486552136,1.10299429,2647.3,2646.8,0.00292608]
[1646486552735,1.10299429,2647.2,2647.0,1.10903081]
[1646486552941,1.10299429,2647.1,2647.0,1.10903081]
[1646486553338,2.2238,2647.6,2647.0,1.10903081]
[1646486553339,1.2238,2647.6,2647.0,1.10903081]
[1646486553580,0.16003831,2647.7,2647.0,1.10903081]
[1646486553581,1.10307489,2647.5,2647.0,1.10903081]
[1646486553780,1.10307489,2647.4,2647.0,1.10903081]
[1646486553979,1.10307489,2647.3,2647.0,1.10903081]
[1646486554181,0.16003831,2647.7,2647.0,1.10903081]
[1646486554380,1.10392097,2647.6,2647.1,0.00283819]
[1646486555489,1.10392097,2647.6,2647.0,1.10903081]
[1646486555787,1.10392097,2647.6,2647.2,0.00283813]
[1646486556588,1.10392097,2647.6,2646.7,0.00170303]
[1646486556589,0.00130377,2646.9,2646.7,0.00170303]
[1646486556788,0.00130377,2646.9,2646.7,0.41552614]
[1646486557434,0.00130377,2646.9,2646.8,1.02470174]
[1646486557636,0.00130377,2646.9,2646.8,1.44022788]
[1646486558735,0.00130377,2646.9,2646.8,1.02470174]
[1646486561283,0.00130377,2646.9,2646.8,1.44038429]
[1646486563984,0.00130377,2646.9,2646.8,1.42298037]
[1646486565241,0.00130377,2646.9,2646.8,0.41568255]
[1646486565439,0.00130377,2646.9,2646.7,0.00287126]
[1646486565640,0.00130377,2646.9,2646.7,0.41905852]
[1646486565843,0.00130377,2646.9,2646.7,0.00287126]
[1646486566241,0.00130377,2646.9,2646.7,1.16016434]
[1646486566440,0.00130377,2646.9,2646.7,1.16303562]
[1646486567441,0.00130377,2646.9,2646.7,1.16016434]
[1646486567641,0.00130377,2646.9,2646.7,1.16303562]
[1646486567842,0.00130377,2646.9,2646.7,0.00287128]
[1646486568680,0.00130377,2646.9,2646.4,0.41606457]
[1646486568883,0.00130377,2646.9,2646.7,1.12450938]
[1646486569784,0.00130377,2646.9,2646.7,1.12183505]
[1646486570084,0.00130377,2646.9,2646.7,1.12450938]
[1646486571088,0.00130377,2646.9,2646.7,1.12183505]
[1646486571288,0.00130377,2646.9,2646.7,1.12450938]
[1646486572186,0.00130377,2646.9,2646.7,1.07183505]
[1646486572435,0.00130377,2646.9,2646.8,0.41657271]
[1646486572737,0.00130377,2646.9,2646.7,0.00287517]
[1646486573337,0.37730377,2646.9,2646.7,0.00287517]
[1646486573535,1.48167355,2646.8,2646.4,0.41663197]
[1646486573740,1.10567355,2646.7,2646.4,0.41663197]
[1646486573938,1.10267055,2646.7,2646.4,0.41663197]
[1646486574739,0.00130377,2646.9,2646.4,0.41663197]
[1646486574940,0.00130377,2646.9,2646.3,1.20084598]
[1646486576179,2.3169,2647.2,2646.5,0.00292364]
[1646486576180,3.31520077,2647.2,2646.5,0.00292364]
[1646486576582,2.31520077,2647.2,2646.5,0.00292364]
[1646486577082,2.31520077,2647.2,2646.3,0.00170303]
[1646486577283,2.31520077,2647.2,2646.7,0.00292353]
[1646486577488,0.00134081,2646.5,2646.4,0.92272558]
[1646486586791,0.00134081,2646.5,2646.4,1.75072558]
[1646486587440,0.00134081,2646.5,2646.4,2.44246751]
[1646486587641,0.00134081,2646.5,2646.4,1.75072558]
[1646486588041,0.00134081,2646.5,2646.4,2.44548978]
[1646486588240,0.00134081,2646.5,2646.4,1.75072558]
[1646486588739,0.00134081,2646.5,2646.4,2.4454903]
[1646486589541,0.00134081,2646.5,2646.4,2.3954903]
[1646486589841,0.00134081,2646.5,2646.4,1.70072558]
[1646486590241,0.00134081,2646.5,2646.4,2.3954903]
[1646486590440,0.00134081,2646.5,2646.4,1.70072558]
[1646486590640,0.00134081,2646.5,2646.4,2.3954903]
[1646486591484,0.00134081,2646.5,2646.4,1.70072558]
[1646486591684,0.00134081,2646.5,2646.4,2.3954903]
[1646486592182,0.00134081,2646.5,2646.4,1.70072558]
[1646486592586,0.00134081,2646.5,2646.4,1.32472558]
[1646486593787,0.00134081,2646.5,2646.4,0.87272558]
[1646486593989,0.00134081,2646.5,2646.4,1.29096692]
[1646486595032,0.00134081,2646.5,2646.4,1.24096692]
[1646486602192,0.00134081,2646.5,2646.4,1.61696692]
[1646486602439,0.00134081,2646.5,2646.4,2.31173164]
[1646486604044,0.00134081,2646.5,2646.4,1.9315367]
[1646486604642,0.00134081,2646.5,2646.4,1.23677198]
[1646486606885,0.00134081,2646.5,2646.4,1.27237552]
[1646486607888,1.10830031,2647.2,2646.8,0.95830441]
[1646486609934,1.10830031,2647.2,2646.8,0.99390795]
[1646486610533,1.10830031,2647.2,2646.8,0.03560354]
[1646486610934,2.93558727,2647.4,2646.8,0.03560354]
[1646486612136,1.93558727,2647.4,2646.8,0.03560354]
[1646486612335,2.93558727,2647.4,2646.8,0.03560354]
[1646486612539,1.2543028,2647.4,2646.8,0.03560354]
[1646486612743,0.15921772,2647.3,2646.8,0.03560354]
[1646486612939,0.16582052,2647.3,2646.8,0.03560354]
[1646486618839,0.16281752,2647.3,2646.8,0.03560354]
[1646486620444,0.84410199,2647.3,2646.8,0.03560354]
[1646486620740,0.16281752,2647.3,2646.8,0.03560354]
[1646486620941,3.58010614,2647.3,2646.8,0.03560354]
[1646486621210,4.58010614,2647.3,2646.8,0.03560354]
[1646486622415,6.32693476,2647.3,2646.8,0.03560354]
[1646486623018,0.68128447,2647.2,2646.7,0.99931001]
[1646486623216,0.68788727,2647.2,2646.6,0.00272031]
[1646486623416,4.10517589,2647.2,2646.6,0.00272031]
[1646486623824,4.10517589,2647.2,2646.5,1.14868447]
[1646486623825,5.10517589,2647.2,2646.5,1.13780303]
[1646486624022,5.10517589,2647.2,2646.5,1.1361]
[1646486624220,0.68128447,2647.1,2646.6,0.00272022]
[1646486624423,0.68128447,2647.0,2646.6,0.00272022]
[1646486624620,0.0066028,2647.0,2646.6,0.00272022]
[1646486624844,0.68788727,2647.0,2646.6,0.00272022]
[1646486625035,0.68788727,2647.0,2646.3,0.00170303]
[1646486625438,0.68788727,2647.0,2646.6,0.00272015]
[1646486625838,0.0066028,2647.0,2646.6,0.00272015]
[1646486626238,0.0066028,2647.0,2646.3,0.00170303]
[1646486626239,0.94663389,2646.9,2646.3,0.00170303]
[1646486626440,0.95323669,2646.9,2646.3,0.00170303]
[1646486626640,0.95323669,2646.9,2646.6,0.00272015]
[1646486627444,0.95323669,2646.9,2646.3,0.00170303]
[1646486627744,0.95323669,2646.9,2646.6,0.00272012]
[1646486627944,1.10902166,2646.8,2646.6,0.00272012]
[1646486628344,1.11562446,2646.8,2646.6,0.00272012]
[1646486628585,1.10902166,2646.7,2646.6,0.00272012]
[1646486628785,1.10902166,2646.7,2646.4,0.41972412]
[1646486628984,1.10902166,2646.7,2646.6,0.00272009]
[1646486629188,1.10902166,2646.7,2646.6,0.42244421]
[1646486629387,1.10902166,2646.7,2646.6,0.00272009]
[1646486629786,1.10207166,2646.7,2646.6,0.00272009]
[1646486629986,1.10207166,2646.7,2646.3,0.41972412]
[1646486630186,1.10207166,2646.7,2646.5,0.00272011]
[1646486631091,1.10207166,2646.7,2646.2,0.69646775]
[1646486631291,1.10207166,2646.7,2646.5,0.00272013]
[1646486632350,1.10207166,2646.7,2646.3,0.69476472]
[1646486632540,1.10207166,2646.7,2646.5,0.0027164]
[1646486633040,0.0066028,2646.8,2646.5,0.69748112]
[1646486633445,0.0066028,2646.8,2646.5,0.69476472]
[1646486633645,0.0066028,2646.8,2646.5,1.64394519]
[1646486633844,0.0066028,2646.8,2646.5,1.64666157]
[1646486634045,0.0066028,2646.8,2646.5,0.95189685]
[1646486634646,0.0066028,2646.8,2646.4,1.86966472]
[1646486635145,0.0066028,2646.8,2646.5,0.00271638]
[1646486635948,0.0066028,2646.8,2646.4,2.9575947]
[1646486636183,0.0066028,2646.8,2646.5,0.6974811]
[1646486636584,0.00559824,2646.8,2646.5,0.6974811]
[1646486636783,0.00559824,2646.8,2646.5,0.5974811]
[1646486637184,0.00559824,2646.8,2646.5,0.59476472]
[1646486637386,0.00559824,2646.8,2646.5,0.59748165]
[1646486638386,0.00559824,2646.8,2646.5,0.59476472]
[1646486638590,0.00559824,2646.8,2646.5,0.59748165]
[1646486639589,0.00559824,2646.8,2646.5,0.59476472]
[1646486639832,0.00559824,2646.8,2646.5,0.59748165]
[1646486640033,0.00559824,2646.8,2646.5,0.00271693]
[1646486640631,0.00559824,2646.8,2646.4,2.26282998]
[1646486641033,0.00559824,2646.8,2646.5,0.00271685]
[1646486641934,0.00559824,2646.8,2646.4,2.26282998]
[1646486642136,0.00559824,2646.8,2646.5,0.00271685]
[1646486643140,0.00257374,2646.8,2646.4,2.26282998]
[1646486643339,0.00257374,2646.8,2646.5,0.00271685]
[1646486644386,0.00257374,2646.8,2646.4,2.26282998]
[1646486644684,0.00257374,2646.8,2646.5,0.00271686]
[1646486645488,0.00257374,2646.8,2646.4,1.1749]
[1646486645686,0.00257374,2646.8,2646.5,0.00271686]
[1646486646689,0.00257374,2646.8,2646.4,2.28627571]
[1646486646888,0.00257374,2646.8,2646.5,0.69595656]
[1646486647089,0.00257374,2646.8,2646.5,0.69867342]
[1646486647739,0.00257374,2646.8,2646.5,0.00271686]
[1646486647940,0.00257374,2646.8,2646.4,2.98223227]
[1646486648140,0.00257374,2646.8,2646.5,0.69867342]
[1646486649141,0.00257374,2646.8,2646.5,0.69595656]
[1646486649344,0.00257374,2646.8,2646.5,0.69867342]
[1646486649746,0.00257374,2646.8,2646.5,1.11635697]
[1646486650244,0.00257374,2646.8,2646.5,1.11364011]
[1646486650645,0.00257374,2646.8,2646.5,1.11635697]
[1646486651086,0.00257374,2646.8,2646.6,0.41768355]
[1646486651287,0.00257374,2646.8,2646.7,0.41768355]
[1646486651489,0.00257374,2646.8,2646.5,0.00271686]
[1646486651490,0.00257374,2646.8,2646.5,0.41768355]
[1646486651887,0.00257374,2646.8,2646.6,0.00271684]
[1646486652792,0.00257374,2646.8,2646.5,0.41768355]
[1646486652992,0.00257374,2646.8,2646.6,0.00271684]
[1646486653591,7.29328862,2646.9,2646.6,0.00271684]
[1646486653795,8.97813804,2646.9,2646.6,0.00271684]
[1646486654100,8.97813804,2646.9,2646.1,0.00170303]
[1646486654101,3.79328862,2646.7,2646.1,0.00170303]
[1646486654292,0.91665083,2646.3,2646.2,0.01086899]
[1646486654493,0.91665083,2646.3,2646.0,1.56769376]
[1646486654692,0.91665083,2646.3,2645.9,0.00170303]
[1646486654937,0.0062711,2646.0,2645.7,0.98842492]
[1646486655140,0.0062711,2646.0,2645.6,4.21685656]
[1646486655340,0.0062711,2646.0,2645.6,1.89595656]
[1646486655538,0.0062711,2646.0,2645.6,1.2]
[1646486656144,1.29197193,2646.3,2645.6,1.2]
[1646486657342,1.28592893,2646.3,2645.6,1.2]
[1646486657845,5.58978862,2646.6,2645.6,1.2]
[1646486657846,2.1725,2646.6,2645.6,1.2]
[1646486658047,2.1725,2646.6,2645.7,0.00170303]
[1646486658246,1.1725,2646.6,2645.7,0.00170303]
[1646486658886,1.5485,2646.6,2645.7,0.69765959]
[1646486659086,1.5485,2646.6,2646.0,0.00292385]
[1646486659284,1.7374,2646.6,2646.0,0.00292385]
[1646486659683,1.3614,2646.6,2646.0,0.00292385]
[1646486659885,1.3614,2646.6,2645.9,1.04910807]
[1646486660288,1.1725,2646.6,2646.1,0.00292389]
[1646486661085,1.1725,2646.6,2645.9,1.04910807]
[1646486661490,1.1725,2646.6,2646.1,0.00292393]
[1646486662347,1.1725,2646.6,2645.9,1.04910807]
[1646486662544,1.1725,2646.6,2646.1,0.00292393]
[1646486663542,1.1725,2646.6,2645.9,1.04910807]
[1646486663741,1.1725,2646.6,2646.1,0.00282524]
[1646486664747,1.1725,2646.6,2646.0,3.5]
[1646486664944,1.1725,2646.6,2645.9,1.04910807]
[1646486665144,1.1725,2646.6,2646.1,0.00282524]
[1646486665945,1.1725,2646.6,2645.9,1.04910807]
[1646486666186,1.1725,2646.6,2646.1,0.00282524]
[1646486667188,1.1725,2646.6,2646.0,3.5]
[1646486667394,1.1725,2646.6,2646.1,0.00270533]
[1646486667791,2.06124395,2646.6,2646.1,0.00270533]
[1646486668393,2.06124395,2646.6,2645.9,1.04910807]
[1646486668691,2.06124395,2646.6,2646.1,0.00270533]
[1646486669492,2.06124395,2646.6,2645.9,1.04910807]
[1646486669692,1.1725,2646.6,2645.9,1.04910807]
[1646486669939,1.1725,2646.6,2646.1,0.00270533]
[1646486670339,0.376,2647.0,2646.1,0.00270533]
[1646486670737,1.43301459,2647.0,2646.0,0.00170303]
[1646486671140,0.376,2647.0,2646.3,0.88950662]
[1646486671739,0.376,2647.0,2646.1,0.00271978]
[1646486671942,0.376,2647.0,2646.0,0.00170303]
[1646486672142,0.376,2647.0,2646.1,0.00271997]
[1646486672744,2.09334942,2647.1,2646.1,0.8733471]
[1646486672745,1.4117083,2646.9,2646.1,0.8733471]
[1646486673045,1.4117083,2646.9,2646.1,0.87062713]
[1646486673246,1.4117083,2646.9,2646.0,0.00170303]
[1646486673586,1.4117083,2646.9,2646.1,0.00271991]
[1646486673587,1.0992769,2646.8,2646.1,0.00271991]
[1646486673790,1.0992769,2646.8,2646.1,0.42886025]
[1646486674088,1.0992769,2646.8,2646.2,0.42443731]
[1646486674486,1.0992769,2646.8,2646.3,0.42443731]
[1646486674688,0.61531711,2646.2,2646.1,0.00442075]
[1646486674887,0.61531711,2646.2,2646.1,0.42712181]
[1646486675486,0.61531711,2646.2,2646.1,0.42440409]
[1646486678140,0.61531711,2646.2,2646.0,0.0027179]
[1646486679141,0.61531711,2646.2,2645.8,0.42440409]
[1646486679344,0.61531711,2646.2,2646.0,0.00271792]
[1646486680345,0.61230111,2646.2,2645.8,0.42440409]
[1646486680546,0.61230111,2646.2,2646.0,0.00271792]
[1646486681588,0.61230111,2646.2,2646.0,0.42440409]
[1646486681788,0.61230111,2646.2,2646.0,0.42712196]
[1646486681988,0.61230111,2646.2,2646.1,0.42440409]
[1646486682391,0.61230111,2646.2,2646.0,0.00271787]
[1646486682594,0.61230111,2646.2,2646.1,0.91350825]
[1646486682794,0.61230111,2646.2,2646.1,1.33791234]
[1646486683192,0.61230111,2646.2,2646.1,0.42440409]
[1646486683594,0.61230111,2646.2,2646.0,0.00271786]
[1646486683795,0.61230111,2646.2,2646.0,0.42712195]
[1646486683995,0.61230111,2646.2,2646.1,0.42440409]
[1646486684396,0.61230111,2646.2,2646.0,0.00271786]
[1646486685138,0.61230111,2646.2,2645.8,0.42440409]
[1646486685339,0.61230111,2646.2,2646.0,0.00271788]
[1646486685544,0.61230111,2646.2,2646.0,0.42712197]
[1646486685743,0.61230111,2646.2,2646.1,0.42440409]
[1646486685941,0.61230111,2646.2,2646.0,0.00271788]
[1646486686344,0.61230111,2646.2,2645.8,0.42440409]
[1646486686345,0.60788411,2646.2,2645.8,0.42440409]
[1646486686643,0.60788411,2646.2,2646.0,0.00271786]
[1646486687649,0.60788411,2646.2,2645.8,0.42440409]
[1646486687844,0.60788411,2646.2,2646.0,0.00271788]
[1646486688688,0.60788411,2646.2,2645.8,0.42440409]
[1646486688988,0.60788411,2646.2,2646.0,0.00292134]
[1646486689994,0.60788411,2646.2,2645.8,0.42440409]
[1646486690194,0.60788411,2646.2,2646.0,0.00292134]
[1646486691192,0.60788411,2646.2,2645.8,0.42440409]
[1646486691395,0.60788411,2646.2,2646.0,0.00292134]
[1646486692440,0.60788411,2646.2,2645.8,0.42440409]
[1646486692642,0.60788411,2646.2,2646.0,0.00083065]
[1646486692839,0.60788411,2646.2,2646.0,0.42523474]
[1646486693039,0.60788411,2646.2,2646.1,0.42440409]
[1646486693243,0.60788411,2646.2,2646.0,0.00083065]
[1646486693640,0.60788411,2646.2,2645.7,0.00170303]
[1646486693841,0.60788411,2646.2,2645.6,1.72280769]
[1646486694245,0.60788411,2646.2,2645.6,0.69595656]
[1646486694443,0.60788411,2646.2,2645.5,0.69765959]
[1646486695244,4.17601292,2646.2,2645.5,0.69765959]
[1646486695646,1.06263446,2645.9,2645.5,0.69765959]
[1646486695847,1.06263446,2645.9,2645.4,1.91945656]
[1646486695848,0.47780865,2645.9,2645.4,1.91945656]
[1646486696086,0.47780865,2645.9,2645.4,0.69595656]